Workbook

Sheet मालसूची
C1: वस्तु सूची | K1: TRUE
B4: Column1 | C4: वस्तु ID | D4: नाम | E4: वर्णन | F4: इकाई मूल्य | G4: स्टॉक में मात्रा | H4: वस्तु सूची मूल्य | I4: पुनः ऑर्डर स्तर | J4: पुनः ऑर्डर करने का समय दिनों में | K4: पुनः ऑर्डर की मात्रा | L4: जारी नहीं रखा गया?
B5: =(तालिकावस्तुसूची[[#This Row],[स्टॉक में मात्रा]]<=तालिकावस्तुसूची[[#This Row],[पुनः ऑर्डर स्तर]])*(तालिकावस्तुसूची[[#This Row],[जारी नहीं रखा गया?]]="")*valHighlight -> 1 | C5: IN0001 | D5: आइटम 1 | E5: वर्णन 1 | F5: रु 51.00 | G5: 25 | H5: =तालिकावस्तुसूची[[#This Row],[इकाई मूल्य]]*तालिकावस्तुसूची[[#This Row],[स्टॉक में मात्रा]] -> $1,275.00 | I5: 29 | J5: 13 | K5: 50
B6: =(तालिकावस्तुसूची[[#This Row],[स्टॉक में मात्रा]]<=तालिकावस्तुसूची[[#This Row],[पुनः ऑर्डर स्तर]])*(तालिकावस्तुसूची[[#This Row],[जारी नहीं रखा गया?]]="")*valHighlight -> 1 | C6: IN0002 | D6: आइटम 2 | E6: वर्णन 2 | F6: रु 93.00 | G6: 132 | H6: =तालिकावस्तुसूची[[#This Row],[इकाई मूल्य]]*तालिकावस्तुसूची[[#This Row],[स्टॉक में मात्रा]] -> $12,276.00 | I6: 231 | J6: 4 | K6: 50
B7: =(तालिकावस्तुसूची[[#This Row],[स्टॉक में मात्रा]]<=तालिकावस्तुसूची[[#This Row],[पुनः ऑर्डर स्तर]])*(तालिकावस्तुसूची[[#This Row],[जारी नहीं रखा गया?]]="")*valHighlight -> 0 | C7: IN0003 | D7: आइटम 3 | E7: वर्णन 3 | F7: रु 57.00 | G7: 151 | H7: =तालिकावस्तुसूची[[#This Row],[इकाई मूल्य]]*तालिकावस्तुसूची[[#This Row],[स्टॉक में मात्रा]] -> $8,607.00 | I7: 114 | J7: 11 | K7: 150
B8: =(तालिकावस्तुसूची[[#This Row],[स्टॉक में मात्रा]]<=तालिकावस्तुसूची[[#This Row],[पुनः ऑर्डर स्तर]])*(तालिकावस्तुसूची[[#This Row],[जारी नहीं रखा गया?]]="")*valHighlight -> 0 | C8: IN0004 | D8: आइटम 4 | E8: वर्णन 4 | F8: रु 19.00 | G8: 186 | H8: =तालिकावस्तुसूची[[#This Row],[इकाई मूल्य]]*तालिकावस्तुसूची[[#This Row],[स्टॉक में मात्रा]] -> रु 3,534.00 | I8: 158 | J8: 6 | K8: 50
B9: =(तालिकावस्तुसूची[[#This Row],[स्टॉक में मात्रा]]<=तालिकावस्तुसूची[[#This Row],[पुनः ऑर्डर स्तर]])*(तालिकावस्तुसूची[[#This Row],[जारी नहीं रखा गया?]]="")*valHighlight -> 0 | C9: IN0005 | D9: आइटम 5 | E9: वर्णन 5 | F9: रु 75.00 | G9: 62 | H9: =तालिकावस्तुसूची[[#This Row],[इकाई मूल्य]]*तालिकावस्तुसूची[[#This Row],[स्टॉक में मात्रा]] -> रु 4,650.00 | I9: 39 | J9: 12 | K9: 50
B10: =(तालिकावस्तुसूची[[#This Row],[स्टॉक में मात्रा]]<=तालिकावस्तुसूची[[#This Row],[पुनः ऑर्डर स्तर]])*(तालिकावस्तुसूची[[#This Row],[जारी नहीं रखा गया?]]="")*valHighlight -> 1 | C10: IN0006 | D10: आइटम 6 | E10: वर्णन 6 | F10: रु 11.00 | G10: 5 | H10: =तालिकावस्तुसूची[[#This Row],[इकाई मूल्य]]*तालिकावस्तुसूची[[#This Row],[स्टॉक में मात्रा]] -> रु 55.00 | I10: 9 | J10: 13 | K10: 150
B11: =(तालिकावस्तुसूची[[#This Row],[स्टॉक में मात्रा]]<=तालिकावस्तुसूची[[#This Row],[पुनः ऑर्डर स्तर]])*(तालिकावस्तुसूची[[#This Row],[जारी नहीं रखा गया?]]="")*valHighlight -> 1 | C11: IN0007 | D11: आइटम 7 | E11: वर्णन 7 | F11: रु 56.00 | G11: 58 | H11: =तालिकावस्तुसूची[[#This Row],[इकाई मूल्य]]*तालिकावस्तुसूची[[#This Row],[स्टॉक में मात्रा]] -> रु 3,248.00 | I11: 109 | J11: 7 | K11: 100
B12: =(तालिकावस्तुसूची[[#This Row],[स्टॉक में मात्रा]]<=तालिकावस्तुसूची[[#This Row],[पुनः ऑर्डर स्तर]])*(तालिकावस्तुसूची[[#This Row],[जारी नहीं रखा गया?]]="")*valHighlight -> 1 | C12: IN0008 | D12: आइटम 8 | E12: वर्णन 8 | F12: रु 38.00 | G12: 101 | H12: =तालिकावस्तुसूची[[#This Row],[इकाई मूल्य]]*तालिकावस्तुसूची[[#This Row],[स्टॉक में मात्रा]] -> रु 3,838.00 | I12: 162 | J12: 3 | K12: 100
B13: =(तालिकावस्तुसूची[[#This Row],[स्टॉक में मात्रा]]<=तालिकावस्तुसूची[[#This Row],[पुनः ऑर्डर स्तर]])*(तालिकावस्तुसूची[[#This Row],[जारी नहीं रखा गया?]]="")*valHighlight -> 0 | C13: IN0009 | D13: आइटम 9 | E13: वर्णन 9 | F13: रु 59.00 | G13: 122 | H13: =तालिकावस्तुसूची[[#This Row],[इकाई मूल्य]]*तालिकावस्तुसूची[[#This Row],[स्टॉक में मात्रा]] -> रु 7,198.00 | I13: 82 | J13: 3 | K13: 150
B14: =(तालिकावस्तुसूची[[#This Row],[स्टॉक में मात्रा]]<=तालिकावस्तुसूची[[#This Row],[पुनः ऑर्डर स्तर]])*(तालिकावस्तुसूची[[#This Row],[जारी नहीं रखा गया?]]="")*valHighlight -> 1 | C14: IN0010 | D14: आइटम 10 | E14: वर्णन 10 | F14: रु 50.00 | G14: 175 | H14: =तालिकावस्तुसूची[[#This Row],[इकाई मूल्य]]*तालिकावस्तुसूची[[#This Row],[स्टॉक में मात्रा]] -> रु 8,750.00 | I14: 283 | J14: 8 | K14: 150
B15: =(तालिकावस्तुसूची[[#This Row],[स्टॉक में मात्रा]]<=तालिकावस्तुसूची[[#This Row],[पुनः ऑर्डर स्तर]])*(तालिकावस्तुसूची[[#This Row],[जारी नहीं रखा गया?]]="")*valHighlight -> 1 | C15: IN0011 | D15: आइटम 11 | E15: वर्णन 11 | F15: रु 59.00 | G15: 176 | H15: =तालिकावस्तुसूची[[#This Row],[इकाई मूल्य]]*तालिकावस्तुसूची[[#This Row],[स्टॉक में मात्रा]] -> रु 10,384.00 | I15: 229 | J15: 1 | K15: 100
B16: =(तालिकावस्तुसूची[[#This Row],[स्टॉक में मात्रा]]<=तालिकावस्तुसूची[[#This Row],[पुनः ऑर्डर स्तर]])*(तालिकावस्तुसूची[[#This Row],[जारी नहीं रखा गया?]]="")*valHighlight -> 1 | C16: IN0012 | D16: आइटम 12 | E16: वर्णन 12 | F16: रु 18.00 | G16: 22 | H16: =तालिकावस्तुसूची[[#This Row],[इकाई मूल्य]]*तालिकावस्तुसूची[[#This Row],[स्टॉक में मात्रा]] -> रु 396.00 | I16: 36 | J16: 12 | K16: 50
B17: =(तालिकावस्तुसूची[[#This Row],[स्टॉक में मात्रा]]<=तालिकावस्तुसूची[[#This Row],[पुनः ऑर्डर स्तर]])*(तालिकावस्तुसूची[[#This Row],[जारी नहीं रखा गया?]]="")*valHighlight -> 1 | C17: IN0013 | D17: आइटम 13 | E17: वर्णन 13 | F17: रु 26.00 | G17: 72 | H17: =तालिकावस्तुसूची[[#This Row],[इकाई मूल्य]]*तालिकावस्तुसूची[[#This Row],[स्टॉक में मात्रा]] -> रु 1,872.00 | I17: 102 | J17: 9 | K17: 100
B18: =(तालिकावस्तुसूची[[#This Row],[स्टॉक में मात्रा]]<=तालिकावस्तुसूची[[#This Row],[पुनः ऑर्डर स्तर]])*(तालिकावस्तुसूची[[#This Row],[जारी नहीं रखा गया?]]="")*valHighlight -> 1 | C18: IN0014 | D18: आइटम 14 | E18: वर्णन 14 | F18: रु 42.00 | G18: 62 | H18: =तालिकावस्तुसूची[[#This Row],[इकाई मूल्य]]*तालिकावस्तुसूची[[#This Row],[स्टॉक में मात्रा]] -> रु 2,604.00 | I18: 83 | J18: 2 | K18: 100
B19: =(तालिकावस्तुसूची[[#This Row],[स्टॉक में मात्रा]]<=तालिकावस्तुसूची[[#This Row],[पुनः ऑर्डर स्तर]])*(तालिकावस्तुसूची[[#This Row],[जारी नहीं रखा गया?]]="")*valHighlight -> 0 | C19: IN0015 | D19: आइटम 15 | E19: वर्णन 15 | F19: रु 32.00 | G19: 46 | H19: =तालिकावस्तुसूची[[#This Row],[इकाई मूल्य]]*तालिकावस्तुसूची[[#This Row],[स्टॉक में मात्रा]] -> रु 1,472.00 | I19: 23 | J19: 15 | K19: 50
B20: =(तालिकावस्तुसूची[[#This Row],[स्टॉक में मात्रा]]<=तालिकावस्तुसूची[[#This Row],[पुनः ऑर्डर स्तर]])*(तालिकावस्तुसूची[[#This Row],[जारी नहीं रखा गया?]]="")*valHighlight -> 1 | C20: IN0016 | D20: आइटम 16 | E20: वर्णन 16 | F20: रु 90.00 | G20: 96 | H20: =तालिकावस्तुसूची[[#This Row],[इकाई मूल्य]]*तालिकावस्तुसूची[[#This Row],[स्टॉक में मात्रा]] -> रु 8,640.00 | I20: 180 | J20: 3 | K20: 50
B21: =(तालिकावस्तुसूची[[#This Row],[स्टॉक में मात्रा]]<=तालिकावस्तुसूची[[#This Row],[पुनः ऑर्डर स्तर]])*(तालिकावस्तुसूची[[#This Row],[जारी नहीं रखा गया?]]="")*valHighlight -> 0 | C21: IN0017 | D21: आइटम 17 | E21: वर्णन 17 | F21: रु 97.00 | G21: 57 | H21: =तालिकावस्तुसूची[[#This Row],[इकाई मूल्य]]*तालिकावस्तुसूची[[#This Row],[स्टॉक में मात्रा]] -> रु 5,529.00 | I21: 98 | J21: 12 | K21: 50 | L21: हाँ
B22: =(तालिकावस्तुसूची[[#This Row],[स्टॉक में मात्रा]]<=तालिकावस्तुसूची[[#This Row],[पुनः ऑर्डर स्तर]])*(तालिकावस्तुसूची[[#This Row],[जारी नहीं रखा गया?]]="")*valHighlight -> 1 | C22: IN0018 | D22: आइटम 18 | E22: वर्णन 18 | F22: रु 12.00 | G22: 6 | H22: =तालिकावस्तुसूची[[#This Row],[इकाई मूल्य]]*तालिकावस्तुसूची[[#This Row],[स्टॉक में मात्रा]] -> रु 72.00 | I22: 7 | J22: 13 | K22: 50
B23: =(तालिकावस्तुसूची[[#This Row],[स्टॉक में मात्रा]]<=तालिकावस्तुसूची[[#This Row],[पुनः ऑर्डर स्तर]])*(तालिकावस्तुसूची[[#This Row],[जारी नहीं रखा गया?]]="")*valHighlight -> 1 | C23: IN0019 | D23: आइटम 19 | E23: वर्णन 19 | F23: रु 82.00 | G23: 143 | H23: =तालिकावस्तुसूची[[#This Row],[इकाई मूल्य]]*तालिकावस्तुसूची[[#This Row],[स्टॉक में मात्रा]] -> रु 11,726.00 | I23: 164 | J23: 12 | K23: 150
B24: =(तालिकावस्तुसूची[[#This Row],[स्टॉक में मात्रा]]<=तालिकावस्तुसूची[[#This Row],[पुनः ऑर्डर स्तर]])*(तालिकावस्तुसूची[[#This Row],[जारी नहीं रखा गया?]]="")*valHighlight -> 0 | C24: IN0020 | D24: आइटम 20 | E24: वर्णन 20 | F24: रु 16.00 | G24: 124 | H24: =तालिकावस्तुसूची[[#This Row],[इकाई मूल्य]]*तालिकावस्तुसूची[[#This Row],[स्टॉक में मात्रा]] -> रु 1,984.00 | I24: 113 | J24: 14 | K24: 50
B25: =(तालिकावस्तुसूची[[#This Row],[स्टॉक में मात्रा]]<=तालिकावस्तुसूची[[#This Row],[पुनः ऑर्डर स्तर]])*(तालिकावस्तुसूची[[#This Row],[जारी नहीं रखा गया?]]="")*valHighlight -> 0 | C25: IN0021 | D25: आइटम 21 | E25: वर्णन 21 | F25: रु 19.00 | G25: 112 | H25: =तालिकावस्तुसूची[[#This Row],[इकाई मूल्य]]*तालिकावस्तुसूची[[#This Row],[स्टॉक में मात्रा]] -> रु 2,128.00 | I25: 75 | J25: 11 | K25: 50
B26: =(तालिकावस्तुसूची[[#This Row],[स्टॉक में मात्रा]]<=तालिकावस्तुसूची[[#This Row],[पुनः ऑर्डर स्तर]])*(तालिकावस्तुसूची[[#This Row],[जारी नहीं रखा गया?]]="")*valHighlight -> 0 | C26: IN0022 | D26: आइटम 22 | E26: वर्णन 22 | F26: रु 24.00 | G26: 182 | H26: =तालिकावस्तुसूची[[#This Row],[इकाई मूल्य]]*तालिकावस्तुसूची[[#This Row],[स्टॉक में मात्रा]] -> रु 4,368.00 | I26: 132 | J26: 15 | K26: 150
B27: =(तालिकावस्तुसूची[[#This Row],[स्टॉक में मात्रा]]<=तालिकावस्तुसूची[[#This Row],[पुनः ऑर्डर स्तर]])*(तालिकावस्तुसूची[[#This Row],[जारी नहीं रखा गया?]]="")*valHighlight -> 0 | C27: IN0023 | D27: आइटम 23 | E27: वर्णन 23 | F27: रु 29.00 | G27: 106 | H27: =तालिकावस्तुसूची[[#This Row],[इकाई मूल्य]]*तालिकावस्तुसूची[[#This Row],[स्टॉक में मात्रा]] -> रु 3,074.00 | I27: 142 | J27: 1 | K27: 150 | L27: हाँ
B28: =(तालिकावस्तुसूची[[#This Row],[स्टॉक में मात्रा]]<=तालिकावस्तुसूची[[#This Row],[पुनः ऑर्डर स्तर]])*(तालिकावस्तुसूची[[#This Row],[जारी नहीं रखा गया?]]="")*valHighlight -> 0 | C28: IN0024 | D28: आइटम 24 | E28: वर्णन 24 | F28: रु 75.00 | G28: 173 | H28: =तालिकावस्तुसूची[[#This Row],[इकाई मूल्य]]*तालिकावस्तुसूची[[#This Row],[स्टॉक में मात्रा]] -> रु 12,975.00 | I28: 127 | J28: 9 | K28: 100
B29: =(तालिकावस्तुसूची[[#This Row],[स्टॉक में मात्रा]]<=तालिकावस्तुसूची[[#This Row],[पुनः ऑर्डर स्तर]])*(तालिकावस्तुसूची[[#This Row],[जारी नहीं रखा गया?]]="")*valHighlight -> 0 | C29: IN0025 | D29: आइटम 25 | E29: वर्णन 25 | F29: रु 14.00 | G29: 28 | H29: =तालिकावस्तुसूची[[#This Row],[इकाई मूल्य]]*तालिकावस्तुसूची[[#This Row],[स्टॉक में मात्रा]] -> रु 392.00 | I29: 21 | J29: 8 | K29: 50
